[Event "Titled Tuesday Blitz November 08 Early 2022"]
[White "Rakhmanov, Aleksandr"]
[Black "Sarana, Alexey"]
[WhiteFideId "4173708"]
[BlackFideId "24133795"]
[WhiteElo "2530"]
[BlackElo "2708"]
[Result "1-0"]
[Round "07"]
[TimeControl "180+1"]
[Date "2022.11.08"]
[WhiteClock "0:00:03"]
[BlackClock "0:00:01"]

1. d4 {[%clk 0:02:59]}  Nf6 {[%clk 0:02:54]} 2. c4 {[%clk 0:03:00]}  e6 {[%clk 0:02:54]} 3. Nc3 {[%clk 0:03:00]}  d5 {[%clk 0:02:54]} 4. cxd5 {[%clk 0:02:58]}  exd5 {[%clk 0:02:55]} 5. Bg5 {[%clk 0:02:59]}  c6 {[%clk 0:02:55]} 6. e3 {[%clk 0:02:59]}  Bf5 {[%clk 0:02:56]} 7. Qf3 {[%clk 0:02:58]}  Bg6 {[%clk 0:02:56]} 8. Bxf6 {[%clk 0:02:59]}  Qxf6 {[%clk 0:02:57]} 9. Qxf6 {[%clk 0:02:59]}  gxf6 {[%clk 0:02:58]} 10. Nf3 {[%clk 0:03:00]}  Be7 {[%clk 0:02:56]} 11. Nh4 {[%clk 0:02:55]}  Nd7 {[%clk 0:02:56]} 12. Ne2 {[%clk 0:02:54]}  f5 {[%clk 0:02:56]} 13. Nf3 {[%clk 0:02:55]}  Bb4+ {[%clk 0:02:52]} 14. Nd2 {[%clk 0:02:41]}  Nf6 {[%clk 0:02:44]} 15. a3 {[%clk 0:02:40]}  Bd6 {[%clk 0:02:34]} 16. f3 {[%clk 0:02:31]}  Kd7 {[%clk 0:02:33]} 17. Kf2 {[%clk 0:02:30]}  a5 {[%clk 0:02:32]} 18. g3 {[%clk 0:02:28]}  Rae8 {[%clk 0:02:28]} 19. Rc1 {[%clk 0:02:25]}  Re7 {[%clk 0:02:25]} 20. Rc3 {[%clk 0:02:20]}  Rhe8 {[%clk 0:02:25]} 21. Nf4 {[%clk 0:02:16]}  Bxf4 {[%clk 0:02:01]} 22. gxf4 {[%clk 0:02:12]}  a4 {[%clk 0:02:01]} 23. Be2 {[%clk 0:02:00]}  Kd6 {[%clk 0:02:01]} 24. Rhc1 {[%clk 0:01:59]}  Ra8 {[%clk 0:02:00]} 25. R3c2 {[%clk 0:01:52]}  Nd7 {[%clk 0:01:59]} 26. Nb1 {[%clk 0:01:44]}  Ra7 {[%clk 0:01:42]} 27. Nc3 {[%clk 0:01:41]}  Re8 {[%clk 0:01:42]} 28. Na2 {[%clk 0:01:40]}  f6 {[%clk 0:01:30]} 29. Nb4 {[%clk 0:01:38]}  Rc8 {[%clk 0:01:24]} 30. Bf1 {[%clk 0:01:22]}  Raa8 {[%clk 0:01:04]} 31. Bh3 {[%clk 0:01:22]}  Rc7 {[%clk 0:00:56]} 32. Nd3 {[%clk 0:01:17]}  Rcc8 {[%clk 0:00:56]} 33. Ne1 {[%clk 0:01:03]}  Nb6 {[%clk 0:00:36]} 34. Ng2 {[%clk 0:00:59]}  Nc4 {[%clk 0:00:36]} 35. Nh4 {[%clk 0:00:59]}  Re8 {[%clk 0:00:36]} 36. Re1 {[%clk 0:00:48]}  Ra5 {[%clk 0:00:18]} 37. Bxf5 {[%clk 0:00:37]}  Rb5 {[%clk 0:00:18]} 38. Ree2 {[%clk 0:00:29]}  Rb3 {[%clk 0:00:17]} 39. e4 {[%clk 0:00:28]}  Bxf5 {[%clk 0:00:07]} 40. Nxf5+ {[%clk 0:00:29]}  Kd7 {[%clk 0:00:08]} 41. Ne3 {[%clk 0:00:16]}  Nd6 {[%clk 0:00:03]} 42. exd5 {[%clk 0:00:14]}  Rd3 {[%clk 0:00:04]} 43. dxc6+ {[%clk 0:00:14]}  bxc6 {[%clk 0:00:04]} 44. Ng4 {[%clk 0:00:15]}  Rxe2+ {[%clk 0:00:04]} 45. Rxe2 {[%clk 0:00:15]}  Rxd4 {[%clk 0:00:04]} 46. Nxf6+ {[%clk 0:00:16]}  Kd8 {[%clk 0:00:05]} 47. Kg3 {[%clk 0:00:11]}  c5 {[%clk 0:00:05]} 48. Nxh7 {[%clk 0:00:11]}  c4 {[%clk 0:00:03]} 49. Ng5 {[%clk 0:00:11]}  Kd7 {[%clk 0:00:02]} 50. h4 {[%clk 0:00:11]}  Nf5+ {[%clk 0:00:03]} 51. Kg4 {[%clk 0:00:11]}  Nh6+ {[%clk 0:00:04]} 52. Kh5 {[%clk 0:00:11]}  Nf5 {[%clk 0:00:04]} 53. Ne4 {[%clk 0:00:08]}  Ne7 {[%clk 0:00:03]} 54. Kg4 {[%clk 0:00:07]}  Ke8 {[%clk 0:00:02]} 55. h5 {[%clk 0:00:07]}  Kf7 {[%clk 0:00:03]} 56. Ng5+ {[%clk 0:00:07]}  Ke8 {[%clk 0:00:02]} 57. h6 {[%clk 0:00:07]}  Rd1 {[%clk 0:00:02]} 58. h7 {[%clk 0:00:04]}  Rh1 {[%clk 0:00:02]} 59. Nh3 {[%clk 0:00:03]}  Kf7 {[%clk 0:00:01]} 60. Rxe7+ {[%clk 0:00:03]} 1-0


[Site "https://www.chess.com"]

[Event "Titled Tuesday Blitz November 08 Early 2022"]
[White "Remizov, Yaroslav"]
[Black "Belozerov, Andrei"]
[WhiteFideId "34134015"]
[BlackFideId "4120213"]
[WhiteElo "2414"]
[BlackElo "2360"]
[Result "1-0"]
[Round "07"]
[TimeControl "180+1"]
[Date "2022.11.09"]
[WhiteClock "0:00:06"]
[BlackClock "0:00:02"]

1. e3 {[%clk 0:02:59]}  d5 {[%clk 0:02:50]} 2. a3 {[%clk 0:02:59]}  e5 {[%clk 0:02:49]} 3. c4 {[%clk 0:02:56]}  d4 {[%clk 0:02:45]} 4. exd4 {[%clk 0:02:55]}  exd4 {[%clk 0:02:46]} 5. d3 {[%clk 0:02:54]}  a5 {[%clk 0:02:45]} 6. g3 {[%clk 0:02:53]}  Nf6 {[%clk 0:02:37]} 7. Bg2 {[%clk 0:02:51]}  Be7 {[%clk 0:02:32]} 8. Ne2 {[%clk 0:02:49]}  O-O {[%clk 0:02:30]} 9. O-O {[%clk 0:02:49]}  Nc6 {[%clk 0:02:26]} 10. Nd2 {[%clk 0:02:47]}  Bf5 {[%clk 0:02:20]} 11. Nf3 {[%clk 0:02:44]}  Qd7 {[%clk 0:02:17]} 12. Re1 {[%clk 0:02:31]}  Rfe8 {[%clk 0:02:10]} 13. Nf4 {[%clk 0:02:28]}  Bd6 {[%clk 0:01:59]} 14. Nd5 {[%clk 0:02:17]}  Rxe1+ {[%clk 0:01:57]} 15. Nxe1 {[%clk 0:02:17]}  Nxd5 {[%clk 0:01:54]} 16. cxd5 {[%clk 0:02:16]}  Ne5 {[%clk 0:01:52]} 17. Bf4 {[%clk 0:02:16]}  Re8 {[%clk 0:01:49]} 18. Rc1 {[%clk 0:02:07]}  h6 {[%clk 0:01:43]} 19. Qb3 {[%clk 0:01:54]}  b6 {[%clk 0:01:41]} 20. Bxe5 {[%clk 0:01:54]}  Rxe5 {[%clk 0:01:38]} 21. Nf3 {[%clk 0:01:50]}  Re8 {[%clk 0:01:30]} 22. Nxd4 {[%clk 0:01:48]}  Bh3 {[%clk 0:01:28]} 23. Bxh3 {[%clk 0:01:40]}  Qxh3 {[%clk 0:01:27]} 24. Nb5 {[%clk 0:01:40]}  Bf4 {[%clk 0:01:10]} 25. Rf1 {[%clk 0:00:40]}  Re5 {[%clk 0:01:03]} 26. Nd4 {[%clk 0:00:17]}  Rh5 {[%clk 0:00:44]} 27. Nf3 {[%clk 0:00:17]}  Bd6 {[%clk 0:00:39]} 28. Re1 {[%clk 0:00:06]}  Qf5 {[%clk 0:00:37]} 29. d4 {[%clk 0:00:04]}  Qxd5 {[%clk 0:00:32]} 30. Qxd5 {[%clk 0:00:04]}  Rxd5 {[%clk 0:00:33]} 31. Kg2 {[%clk 0:00:04]}  Rb5 {[%clk 0:00:30]} 32. Re2 {[%clk 0:00:04]}  Rb3 {[%clk 0:00:30]} 33. Rc2 {[%clk 0:00:04]}  f6 {[%clk 0:00:22]} 34. Nd2 {[%clk 0:00:04]}  Rb5 {[%clk 0:00:18]} 35. Ne4 {[%clk 0:00:04]}  Rd5 {[%clk 0:00:15]} 36. Nxd6 {[%clk 0:00:04]}  cxd6 {[%clk 0:00:15]} 37. Rc6 {[%clk 0:00:04]}  Rxd4 {[%clk 0:00:15]} 38. Rxb6 {[%clk 0:00:05]}  Rd2 {[%clk 0:00:15]} 39. b4 {[%clk 0:00:04]}  axb4 {[%clk 0:00:15]} 40. axb4 {[%clk 0:00:04]}  Kf7 {[%clk 0:00:13]} 41. Rb7+ {[%clk 0:00:05]}  Kg6 {[%clk 0:00:12]} 42. b5 {[%clk 0:00:05]}  Rb2 {[%clk 0:00:07]} 43. b6 {[%clk 0:00:04]}  d5 {[%clk 0:00:08]} 44. Kf3 {[%clk 0:00:05]}  d4 {[%clk 0:00:07]} 45. h4 {[%clk 0:00:05]}  h5 {[%clk 0:00:07]} 46. Ke4 {[%clk 0:00:04]}  Rxf2 {[%clk 0:00:05]} 47. Kxd4 {[%clk 0:00:05]}  Rb2 {[%clk 0:00:04]} 48. Kc5 {[%clk 0:00:05]}  Rc2+ {[%clk 0:00:03]} 49. Kd6 {[%clk 0:00:06]}  Rd2+ {[%clk 0:00:03]} 50. Kc7 {[%clk 0:00:06]}  Rd3 {[%clk 0:00:03]} 51. Ra7 {[%clk 0:00:05]}  Rxg3 {[%clk 0:00:03]} 52. b7 {[%clk 0:00:05]}  Rb3 {[%clk 0:00:04]} 53. b8=Q {[%clk 0:00:05]}  Rxb8 {[%clk 0:00:04]} 54. Kxb8 {[%clk 0:00:06]}  Kh6 {[%clk 0:00:02]} 55. Kc7 {[%clk 0:00:05]}  g5 {[%clk 0:00:02]} 56. Kd6 {[%clk 0:00:04]}  gxh4 {[%clk 0:00:01]} 57. Kd5 {[%clk 0:00:03]}  Kg5 {[%clk 0:00:01]} 58. Ke4 {[%clk 0:00:03]}  Kg4 {[%clk 0:00:02]} 59. Rg7+ {[%clk 0:00:03]}  Kh3 {[%clk 0:00:02]} 60. Kf3 {[%clk 0:00:04]}  f5 {[%clk 0:00:01]} 61. Kf2 {[%clk 0:00:04]}  Kh2 {[%clk 0:00:01]} 62. Rg5 {[%clk 0:00:04]}  f4 {[%clk 0:00:01]} 63. Rxh5 {[%clk 0:00:04]}  h3 {[%clk 0:00:02]} 64. Rh6 {[%clk 0:00:05]}  f3 {[%clk 0:00:02]} 65. Rh7 {[%clk 0:00:05]}  Kh1 {[%clk 0:00:02]} 66. Rxh3# {[%clk 0:00:06]} 1-0


[Site "https://www.chess.com"]

[Event "Titled Tuesday Blitz November 08 Early 2022"]
[White "Rodriguez Fontecha, Marcos"]
[Black "Degenbaev, Aziz"]
[WhiteFideId "2256576"]
[BlackFideId "13802640"]
[WhiteElo "2263"]
[BlackElo "2039"]
[Result "1-0"]
[Round "07"]
[TimeControl "180+1"]
[Date "2022.11.09"]
[WhiteClock "0:00:13"]
[BlackClock "0:00:24"]

1. d4 {[%clk 0:02:54]}  Nf6 {[%clk 0:02:54]} 2. Nf3 {[%clk 0:02:54]}  c5 {[%clk 0:02:52]} 3. Nc3 {[%clk 0:02:54]}  cxd4 {[%clk 0:02:45]} 4. Qxd4 {[%clk 0:02:55]}  Nc6 {[%clk 0:02:44]} 5. Qh4 {[%clk 0:02:55]}  g6 {[%clk 0:02:43]} 6. Bh6 {[%clk 0:02:54]}  Bxh6 {[%clk 0:02:37]} 7. Qxh6 {[%clk 0:02:55]}  Qb6 {[%clk 0:02:38]} 8. O-O-O {[%clk 0:02:52]}  Qxf2 {[%clk 0:02:36]} 9. e4 {[%clk 0:02:47]}  d6 {[%clk 0:02:34]} 10. Rd2 {[%clk 0:02:26]}  Qc5 {[%clk 0:02:22]} 11. Bb5 {[%clk 0:02:11]}  Bd7 {[%clk 0:02:21]} 12. Re1 {[%clk 0:02:06]}  O-O-O {[%clk 0:02:19]} 13. Qg5 {[%clk 0:02:00]}  Qxg5 {[%clk 0:02:13]} 14. Nxg5 {[%clk 0:02:01]}  Ne5 {[%clk 0:02:13]} 15. Bf1 {[%clk 0:01:58]}  h6 {[%clk 0:02:10]} 16. Nf3 {[%clk 0:01:58]}  Nxf3 {[%clk 0:02:09]} 17. gxf3 {[%clk 0:01:59]}  Nh5 {[%clk 0:02:08]} 18. Nd5 {[%clk 0:01:57]}  e6 {[%clk 0:01:58]} 19. Ne3 {[%clk 0:01:56]}  Bc6 {[%clk 0:01:56]} 20. Red1 {[%clk 0:01:53]}  Kc7 {[%clk 0:01:55]} 21. Nc4 {[%clk 0:01:53]}  d5 {[%clk 0:01:51]} 22. exd5 {[%clk 0:01:53]}  Rxd5 {[%clk 0:01:50]} 23. Rxd5 {[%clk 0:01:50]}  Bxd5 {[%clk 0:01:51]} 24. Ne5 {[%clk 0:01:50]}  Rf8 {[%clk 0:01:38]} 25. c4 {[%clk 0:01:49]}  Bc6 {[%clk 0:01:39]} 26. b4 {[%clk 0:01:48]}  Nf4 {[%clk 0:01:34]} 27. b5 {[%clk 0:01:46]}  Be8 {[%clk 0:01:30]} 28. Rd4 {[%clk 0:01:44]}  g5 {[%clk 0:01:29]} 29. Ng4 {[%clk 0:01:40]}  f5 {[%clk 0:01:28]} 30. Ne5 {[%clk 0:01:28]}  Ng6 {[%clk 0:01:28]} 31. Nd3 {[%clk 0:01:24]}  e5 {[%clk 0:01:17]} 32. Rd5 {[%clk 0:01:23]}  Bf7 {[%clk 0:01:18]} 33. Rc5+ {[%clk 0:01:20]}  Kd6 {[%clk 0:01:18]} 34. b6 {[%clk 0:01:16]}  axb6 {[%clk 0:01:12]} 35. Rb5 {[%clk 0:01:15]}  Bxc4 {[%clk 0:01:11]} 36. Rxb6+ {[%clk 0:01:14]}  Kc7 {[%clk 0:01:05]} 37. Rxg6 {[%clk 0:01:14]}  e4 {[%clk 0:01:06]} 38. Nc5 {[%clk 0:00:49]}  Bxf1 {[%clk 0:00:32]} 39. Ne6+ {[%clk 0:00:48]}  Kd6 {[%clk 0:00:33]} 40. Nxf8+ {[%clk 0:00:48]}  Ke7 {[%clk 0:00:33]} 41. fxe4 {[%clk 0:00:41]}  fxe4 {[%clk 0:00:30]} 42. Kd2 {[%clk 0:00:30]}  Bc4 {[%clk 0:00:25]} 43. Nh7 {[%clk 0:00:25]}  Kf7 {[%clk 0:00:22]} 44. Rxh6 {[%clk 0:00:24]}  Kg7 {[%clk 0:00:22]} 45. Rh3 {[%clk 0:00:23]}  Kg6 {[%clk 0:00:19]} 46. Nf8+ {[%clk 0:00:22]}  Kg7 {[%clk 0:00:14]} 47. Rc3 {[%clk 0:00:18]}  Bxa2 {[%clk 0:00:14]} 48. Nd7 {[%clk 0:00:17]}  Be6 {[%clk 0:00:13]} 49. Nc5 {[%clk 0:00:17]}  Bd5 {[%clk 0:00:13]} 50. Ke3 {[%clk 0:00:18]}  Kf6 {[%clk 0:00:13]} 51. Nxe4+ {[%clk 0:00:18]}  Ke5 {[%clk 0:00:14]} 52. Nxg5 {[%clk 0:00:19]}  b5 {[%clk 0:00:14]} 53. Nf3+ {[%clk 0:00:18]}  Kd6 {[%clk 0:00:14]} 54. Kd4 {[%clk 0:00:19]}  b4 {[%clk 0:00:15]} 55. Re3 {[%clk 0:00:19]}  b3 {[%clk 0:00:15]} 56. Kc3 {[%clk 0:00:18]}  Kc5 {[%clk 0:00:14]} 57. Nd4 {[%clk 0:00:18]}  b2 {[%clk 0:00:15]} 58. Re1 {[%clk 0:00:16]}  Be4 {[%clk 0:00:14]} 59. Nc2 {[%clk 0:00:12]}  Bf5 {[%clk 0:00:13]} 60. Kxb2 {[%clk 0:00:12]}  Kc4 {[%clk 0:00:14]} 61. Ne3+ {[%clk 0:00:11]}  Kd3 {[%clk 0:00:14]} 62. Nxf5 {[%clk 0:00:12]}  Kd2 {[%clk 0:00:15]} 63. h4 {[%clk 0:00:12]}  Kd3 {[%clk 0:00:16]} 64. h5 {[%clk 0:00:13]}  Kd2 {[%clk 0:00:17]} 65. h6 {[%clk 0:00:13]}  Kxe1 {[%clk 0:00:18]} 66. h7 {[%clk 0:00:14]}  Kf2 {[%clk 0:00:19]} 67. h8=Q {[%clk 0:00:14]}  Kf3 {[%clk 0:00:20]} 68. Ne7 {[%clk 0:00:13]}  Kf4 {[%clk 0:00:20]} 69. Nc8 {[%clk 0:00:14]}  Kf5 {[%clk 0:00:21]} 70. Kc3 {[%clk 0:00:15]}  Kf4 {[%clk 0:00:22]} 71. Kd4 {[%clk 0:00:16]}  Kf5 {[%clk 0:00:22]} 72. Qf8+ {[%clk 0:00:16]}  Kg6 {[%clk 0:00:23]} 73. Ke5 {[%clk 0:00:14]}  Kh7 {[%clk 0:00:23]} 74. Qf2 {[%clk 0:00:13]}  Kh8 {[%clk 0:00:23]} 75. Qg3 {[%clk 0:00:13]}  Kh7 {[%clk 0:00:23]} 76. Kf6 {[%clk 0:00:13]}  Kh8 {[%clk 0:00:24]} 77. Qg7# {[%clk 0:00:13]} 1-0


[Site "https://www.chess.com"]

[Event "Titled Tuesday Blitz November 08 Early 2022"]
[White "Roque Sola, Gisela"]
[Black "Makhmudov, Shukhrat"]
[WhiteFideId "5120241"]
[BlackFideId "14200775"]
[WhiteElo "1961"]
[BlackElo "2135"]
[Result "1-0"]
[Round "07"]
[TimeControl "180+1"]
[Date "2022.11.09"]
[WhiteClock "0:00:19"]
[BlackClock "0:00:14"]

1. e4 {[%clk 0:03:00]}  e5 {[%clk 0:02:56]} 2. Nf3 {[%clk 0:03:00]}  Nc6 {[%clk 0:02:55]} 3. Bb5 {[%clk 0:03:01]}  a6 {[%clk 0:02:56]} 4. Ba4 {[%clk 0:03:01]}  Nf6 {[%clk 0:02:55]} 5. O-O {[%clk 0:03:02]}  b5 {[%clk 0:02:55]} 6. Bb3 {[%clk 0:03:01]}  Be7 {[%clk 0:02:56]} 7. Re1 {[%clk 0:03:00]}  d6 {[%clk 0:02:56]} 8. a4 {[%clk 0:02:59]}  Bb7 {[%clk 0:02:56]} 9. c3 {[%clk 0:02:58]}  O-O {[%clk 0:02:55]} 10. Bc2 {[%clk 0:02:51]}  Nd7 {[%clk 0:02:38]} 11. d4 {[%clk 0:02:49]}  exd4 {[%clk 0:02:37]} 12. cxd4 {[%clk 0:02:43]}  Bf6 {[%clk 0:02:37]} 13. axb5 {[%clk 0:02:38]}  axb5 {[%clk 0:02:37]} 14. Rxa8 {[%clk 0:02:39]}  Qxa8 {[%clk 0:02:37]} 15. Nc3 {[%clk 0:02:37]}  b4 {[%clk 0:02:03]} 16. Nd5 {[%clk 0:02:36]}  Bd8 {[%clk 0:02:03]} 17. Bd2 {[%clk 0:02:30]}  Qa7 {[%clk 0:01:55]} 18. Bxb4 {[%clk 0:02:18]}  Nxb4 {[%clk 0:01:53]} 19. Nxb4 {[%clk 0:02:19]}  Bf6 {[%clk 0:01:42]} 20. Nd5 {[%clk 0:02:09]}  Bxd5 {[%clk 0:01:34]} 21. exd5 {[%clk 0:02:10]}  Qa2 {[%clk 0:01:30]} 22. Qd3 {[%clk 0:01:56]}  g6 {[%clk 0:01:28]} 23. Qb3 {[%clk 0:01:56]}  Qa5 {[%clk 0:01:25]} 24. Qa4 {[%clk 0:01:51]}  Qxa4 {[%clk 0:01:18]} 25. Bxa4 {[%clk 0:01:52]}  Nb6 {[%clk 0:01:18]} 26. Bc6 {[%clk 0:01:51]}  Nc4 {[%clk 0:01:16]} 27. b3 {[%clk 0:01:47]}  Na5 {[%clk 0:01:14]} 28. b4 {[%clk 0:01:44]}  Nc4 {[%clk 0:01:14]} 29. Rc1 {[%clk 0:01:25]}  Nb6 {[%clk 0:01:04]} 30. Kf1 {[%clk 0:01:23]}  g5 {[%clk 0:00:59]} 31. h3 {[%clk 0:01:20]}  h5 {[%clk 0:00:58]} 32. g4 {[%clk 0:01:20]}  Kg7 {[%clk 0:00:57]} 33. Ke2 {[%clk 0:01:19]}  Rh8 {[%clk 0:00:56]} 34. Ke3 {[%clk 0:01:00]}  hxg4 {[%clk 0:00:53]} 35. hxg4 {[%clk 0:01:01]}  Rh3 {[%clk 0:00:51]} 36. Ke4 {[%clk 0:01:01]}  Kg6 {[%clk 0:00:45]} 37. Be8 {[%clk 0:00:45]}  Bd8 {[%clk 0:00:29]} 38. Rc3 {[%clk 0:00:40]}  Rh1 {[%clk 0:00:19]} 39. b5 {[%clk 0:00:30]}  Rb1 {[%clk 0:00:18]} 40. Kd3 {[%clk 0:00:26]}  Nxd5 {[%clk 0:00:15]} 41. Rc2 {[%clk 0:00:24]}  Nb4+ {[%clk 0:00:15]} 42. Kc3 {[%clk 0:00:23]}  Nxc2 {[%clk 0:00:15]} 43. Kxc2 {[%clk 0:00:24]}  Rf1 {[%clk 0:00:15]} 44. Kd3 {[%clk 0:00:20]}  Rxf2 {[%clk 0:00:16]} 45. Ke3 {[%clk 0:00:21]}  Rb2 {[%clk 0:00:16]} 46. Nd2 {[%clk 0:00:19]}  Rc2 {[%clk 0:00:15]} 47. Bc6 {[%clk 0:00:19]}  Bf6 {[%clk 0:00:14]} 48. Be4+ {[%clk 0:00:18]}  Kg7 {[%clk 0:00:13]} 49. Bxc2 {[%clk 0:00:19]}  Be7 {[%clk 0:00:13]} 50. Ke4 {[%clk 0:00:19]}  d5+ {[%clk 0:00:14]} 51. Kxd5 {[%clk 0:00:19]} 1-0


[Site "https://www.chess.com"]

[Event "Titled Tuesday Blitz November 08 Early 2022"]
[White "Rosenberg, Evan S"]
[Black "Cruz Mendez, Jean Marco"]
[WhiteFideId "2019299"]
[BlackFideId "3526402"]
[WhiteElo "2389"]
[BlackElo "2064"]
[Result "1-0"]
[Round "07"]
[TimeControl "180+1"]
[Date "2022.11.09"]
[WhiteClock "0:00:10"]
[BlackClock "0:00:06"]

1. d4 {[%clk 0:03:00]}  Nf6 {[%clk 0:00:49]} 2. Nf3 {[%clk 0:02:58]}  d5 {[%clk 0:00:48]} 3. c3 {[%clk 0:02:57]}  e6 {[%clk 0:00:47]} 4. Bf4 {[%clk 0:02:55]}  Bd6 {[%clk 0:00:47]} 5. e3 {[%clk 0:02:54]}  Bxf4 {[%clk 0:00:44]} 6. exf4 {[%clk 0:02:53]}  O-O {[%clk 0:00:45]} 7. Nbd2 {[%clk 0:02:48]}  c5 {[%clk 0:00:44]} 8. dxc5 {[%clk 0:02:44]}  Qc7 {[%clk 0:00:41]} 9. g3 {[%clk 0:02:41]}  Qxc5 {[%clk 0:00:40]} 10. Bg2 {[%clk 0:02:38]}  a6 {[%clk 0:00:38]} 11. O-O {[%clk 0:02:39]}  b5 {[%clk 0:00:37]} 12. Ne5 {[%clk 0:02:29]}  Qc7 {[%clk 0:00:37]} 13. a4 {[%clk 0:02:27]}  Bb7 {[%clk 0:00:30]} 14. axb5 {[%clk 0:02:23]}  axb5 {[%clk 0:00:30]} 15. Rxa8 {[%clk 0:02:20]}  Bxa8 {[%clk 0:00:31]} 16. Qb3 {[%clk 0:02:18]}  Bc6 {[%clk 0:00:28]} 17. Ndf3 {[%clk 0:02:13]}  Be8 {[%clk 0:00:27]} 18. Nd4 {[%clk 0:02:12]}  Qb7 {[%clk 0:00:22]} 19. Ra1 {[%clk 0:02:08]}  Nfd7 {[%clk 0:00:19]} 20. Ra5 {[%clk 0:02:02]}  Nc5 {[%clk 0:00:19]} 21. Qb4 {[%clk 0:01:56]}  Nba6 {[%clk 0:00:19]} 22. Qa3 {[%clk 0:01:51]}  f6 {[%clk 0:00:18]} 23. Nd3 {[%clk 0:01:28]}  Nxd3 {[%clk 0:00:17]} 24. Rxa6 {[%clk 0:01:28]}  Qc8 {[%clk 0:00:15]} 25. Nxe6 {[%clk 0:01:24]}  Rf7 {[%clk 0:00:13]} 26. Bxd5 {[%clk 0:01:24]}  Qd7 {[%clk 0:00:10]} 27. c4 {[%clk 0:01:08]}  bxc4 {[%clk 0:00:10]} 28. Bxc4 {[%clk 0:01:08]}  Ne1 {[%clk 0:00:09]} 29. Rd6 {[%clk 0:00:22]}  Qb7 {[%clk 0:00:08]} 30. Bd5 {[%clk 0:00:19]}  Qb5 {[%clk 0:00:07]} 31. Rd8 {[%clk 0:00:14]}  h6 {[%clk 0:00:06]} 32. Qa8 {[%clk 0:00:11]}  Kh7 {[%clk 0:00:06]} 33. Rxe8 {[%clk 0:00:11]}  Qe2 {[%clk 0:00:06]} 34. Rh8+ {[%clk 0:00:10]}  Kg6 {[%clk 0:00:06]} 35. f5+ {[%clk 0:00:10]}  Kxf5 {[%clk 0:00:06]} 36. Nd4+ {[%clk 0:00:10]} 1-0


[Site "https://www.chess.com"]

[Event "Titled Tuesday Blitz November 08 Early 2022"]
[White "Rosh Jain"]
[Black "Broca Jimenez, Fernando"]
[WhiteFideId "25789465"]
[BlackFideId "5104742"]
[WhiteElo "2233"]
[BlackElo "2062"]
[Result "0-1"]
[Round "07"]
[TimeControl "180+1"]
[Date "2022.11.09"]
[WhiteClock "0:02:00"]
[BlackClock "0:02:32"]

1. e4 {[%clk 0:02:52]}  c5 {[%clk 0:02:59]} 2. Nf3 {[%clk 0:02:46]}  g6 {[%clk 0:02:59]} 3. d4 {[%clk 0:02:45]}  cxd4 {[%clk 0:03:00]} 4. Nxd4 {[%clk 0:02:45]}  Nc6 {[%clk 0:03:00]} 5. Nc3 {[%clk 0:02:45]}  Nf6 {[%clk 0:02:58]} 6. Be3 {[%clk 0:02:44]}  Bg7 {[%clk 0:02:58]} 7. f3 {[%clk 0:02:43]}  O-O {[%clk 0:02:57]} 8. Qd2 {[%clk 0:02:40]}  d5 {[%clk 0:02:56]} 9. exd5 {[%clk 0:02:05]}  Nxd5 {[%clk 0:02:57]} 10. Nxd5 {[%clk 0:02:02]}  Qxd5 {[%clk 0:02:57]} 11. O-O-O {[%clk 0:02:00]}  Qxa2 {[%clk 0:02:32]} 0-1


[Site "https://www.chess.com"]

[Event "Titled Tuesday Blitz November 08 Early 2022"]
[White "Salman, Pavel"]
[Black "Rios Escobar, Adan"]
[WhiteFideId "24153753"]
[BlackFideId "3403645"]
[WhiteElo "2187"]
[BlackElo "2362"]
[Result "1-0"]
[Round "07"]
[TimeControl "180+1"]
[Date "2022.11.09"]
[WhiteClock "0:00:46"]
[BlackClock "0:00:03"]

1. d4 {[%clk 0:03:00]}  Nf6 {[%clk 0:02:54]} 2. Nc3 {[%clk 0:03:00]}  d5 {[%clk 0:02:52]} 3. Bf4 {[%clk 0:03:00]}  e6 {[%clk 0:02:44]} 4. Nb5 {[%clk 0:02:58]}  Na6 {[%clk 0:02:42]} 5. e3 {[%clk 0:02:58]}  c6 {[%clk 0:02:42]} 6. Nc3 {[%clk 0:02:58]}  Qb6 {[%clk 0:02:43]} 7. Qd2 {[%clk 0:02:50]}  Bd7 {[%clk 0:02:27]} 8. Bd3 {[%clk 0:02:45]}  Be7 {[%clk 0:02:09]} 9. Nf3 {[%clk 0:02:45]}  O-O {[%clk 0:02:10]} 10. Ne5 {[%clk 0:02:45]}  Rfc8 {[%clk 0:02:08]} 11. g4 {[%clk 0:02:41]}  Be8 {[%clk 0:02:01]} 12. g5 {[%clk 0:02:37]}  Nd7 {[%clk 0:02:01]} 13. h4 {[%clk 0:02:28]}  c5 {[%clk 0:02:00]} 14. h5 {[%clk 0:02:23]}  cxd4 {[%clk 0:01:55]} 15. exd4 {[%clk 0:02:24]}  Qxb2 {[%clk 0:01:50]} 16. Nd1 {[%clk 0:01:54]}  Qxa1 {[%clk 0:01:48]} 17. c3 {[%clk 0:01:52]}  Nxe5 {[%clk 0:01:36]} 18. Bxe5 {[%clk 0:01:48]}  g6 {[%clk 0:01:05]} 19. hxg6 {[%clk 0:01:45]}  fxg6 {[%clk 0:01:05]} 20. f4 {[%clk 0:01:27]}  Bf8 {[%clk 0:00:48]} 21. Rxh7 {[%clk 0:01:19]}  Ba4 {[%clk 0:00:20]} 22. Rh8+ {[%clk 0:01:01]}  Kf7 {[%clk 0:00:20]} 23. Bxg6+ {[%clk 0:01:01]}  Ke7 {[%clk 0:00:04]} 24. Rh7+ {[%clk 0:00:57]}  Kd8 {[%clk 0:00:04]} 25. Bf6+ {[%clk 0:00:57]}  Be7 {[%clk 0:00:04]} 26. Bxe7+ {[%clk 0:00:57]}  Kd7 {[%clk 0:00:03]} 27. Ba3+ {[%clk 0:00:53]}  Kc6 {[%clk 0:00:03]} 28. Bc1 {[%clk 0:00:46]} 1-0


[Site "https://www.chess.com"]

[Event "Titled Tuesday Blitz November 08 Early 2022"]
[White "Samunenkov, Ihor"]
[Black "Koridze, Lile"]
[WhiteFideId "14187086"]
[BlackFideId "13612514"]
[WhiteElo "2441"]
[BlackElo "2050"]
[Result "1-0"]
[Round "07"]
[TimeControl "180+1"]
[Date "2022.11.09"]
[WhiteClock "0:00:58"]
[BlackClock "0:02:06"]

1. e4 {[%clk 0:03:00]}  c5 {[%clk 0:02:57]} 2. Nf3 {[%clk 0:03:00]}  d6 {[%clk 0:02:57]} 3. d4 {[%clk 0:02:59]}  cxd4 {[%clk 0:02:56]} 4. Nxd4 {[%clk 0:03:00]}  Nf6 {[%clk 0:02:56]} 5. Nc3 {[%clk 0:03:01]}  Nc6 {[%clk 0:02:56]} 6. f3 {[%clk 0:03:01]}  g6 {[%clk 0:02:54]} 7. Be3 {[%clk 0:03:00]}  Bg7 {[%clk 0:02:55]} 8. Qd2 {[%clk 0:03:00]}  O-O {[%clk 0:02:55]} 9. O-O-O {[%clk 0:03:00]}  Nd7 {[%clk 0:02:54]} 10. h4 {[%clk 0:02:55]}  Nxd4 {[%clk 0:02:49]} 11. Bxd4 {[%clk 0:02:53]}  Bxd4 {[%clk 0:02:49]} 12. Qxd4 {[%clk 0:02:54]}  h5 {[%clk 0:02:47]} 13. Bc4 {[%clk 0:02:15]}  Ne5 {[%clk 0:02:41]} 14. Bb3 {[%clk 0:02:14]}  a6 {[%clk 0:02:33]} 15. Qe3 {[%clk 0:01:37]}  Kh7 {[%clk 0:02:26]} 16. g4 {[%clk 0:01:34]}  hxg4 {[%clk 0:02:19]} 17. h5 {[%clk 0:01:34]}  Rh8 {[%clk 0:02:19]} 18. f4 {[%clk 0:01:07]}  Nc6 {[%clk 0:02:13]} 19. hxg6+ {[%clk 0:01:01]}  Kxg6 {[%clk 0:02:13]} 20. f5+ {[%clk 0:01:00]}  Kf6 {[%clk 0:02:06]} 21. Nd5+ {[%clk 0:01:00]}  Ke5 {[%clk 0:02:06]} 22. Qf4# {[%clk 0:00:58]} 1-0


[Site "https://www.chess.com"]